bitfinex-derivatives/quotes_BTCF0:USTF0_20250108
["timestamp","ask_amount","ask_price","bid_price","bid_amount"]
[1736357771629,0.00128,93150.0,93128.0,0.053713]
[1736357771831,0.053714,93127.0,93126.0,0.00064]
[1736357772335,0.3608,93135.0,93117.0,0.3608]
[1736357772534,0.414509,93135.0,93117.0,0.3608]
[1736357772723,8.092e-05,93134.0,93117.0,0.3608]
[1736357772923,0.29855065,93130.0,93117.0,0.3608]
[1736357773134,0.053717,93122.0,93117.0,0.3608]
[1736357773830,0.3608,93127.0,93117.0,0.3608]
[1736357774036,0.053723,93111.0,93100.0,0.3608]
[1736357774335,0.053723,93111.0,93090.0,0.3608]
[1736357774336,0.3608,93110.0,93090.0,0.3608]
[1736357774636,0.053733,93094.0,93090.0,0.3608]
[1736357774821,0.3608,93102.0,93090.0,0.3608]
[1736357775023,0.3608,93110.0,93094.0,0.053733]
[1736357775227,0.3608,93123.0,93101.0,0.3608]
[1736357775424,0.053716,93124.0,93101.0,0.3608]
[1736357775627,0.65935065,93140.0,93101.0,0.3608]
[1736357775628,0.3608,93128.0,93103.0,0.053727]
[1736357775830,0.3608,93128.0,93101.0,0.3608]
[1736357775831,0.053718,93121.0,93110.0,0.053723]
[1736357776037,0.05372,93117.0,93104.0,0.053727]
[1736357776245,0.053725,93109.0,93099.0,0.05373]
[1736357776434,0.3608,93119.0,93099.0,0.05373]
[1736357776629,0.3608,93111.0,93091.0,0.053735]
[1736357776829,0.3608,93111.0,93090.0,0.3608]
[1736357777339,0.053734,93092.0,93090.0,0.3608]
[1736357778436,0.3608,93092.0,93069.0,1.554387]
[1736357778641,0.3608,93082.0,93069.0,1.553747]
[1736357778836,0.3608,93082.0,93067.0,0.3608]
[1736357779045,0.3608,93092.0,93067.0,0.3608]
[1736357779347,0.3608,93092.0,93085.0,0.053738]
[1736357779534,0.3608,93102.0,93085.0,0.3608]
[1736357779846,0.3608,93112.0,93096.0,0.053731]
[1736357780033,0.053725,93109.0,93098.0,0.05373]
[1736357780233,0.3608,93099.0,93085.0,0.3608]
[1736357780428,0.3608,93099.0,93093.0,0.053733]
[1736357780632,0.15910362,93111.0,93085.0,0.3608]
[1736357780633,0.21282662,93111.0,93087.0,0.053736]
[1736357780830,0.3608,93104.0,93076.0,0.7505]
[1736357781043,0.3608,93094.0,93076.0,0.7505]
[1736357781342,0.053744,93074.0,93049.0,0.053759]
[1736357781543,0.053744,93074.0,93027.0,0.3608]
[1736357781544,0.3608,93053.0,93028.0,0.05377]
[1736357781749,0.3608,93034.0,93029.0,0.00214986]
[1736357782354,0.053769,93031.0,93029.0,0.00214986]
[1736357782648,0.3608,93034.0,93012.0,0.37228739]
[1736357782649,0.37835624,93030.0,93012.0,0.31850739]
[1736357782946,0.3608,93038.0,93021.0,0.3608]
[1736357783155,0.3608,93038.0,93030.0,0.053769]
[1736357783453,0.04251788,93033.0,93032.0,0.053768]
[1736357783639,0.3608,93049.0,93048.0,0.053759]
[1736357783836,0.3608,93064.0,93052.0,0.053757]
[1736357784051,0.02680416,93048.0,93047.0,0.05376]
[1736357784250,0.3608,93064.0,93040.0,0.053763]
[1736357784439,0.3608,93048.0,93044.0,0.053761]
[1736357784640,0.3608,93048.0,93040.0,0.053764]
[1736357784842,0.36218604,93047.0,93040.0,0.053764]
[1736357785156,0.36218604,93047.0,93035.0,0.053766]
[1736357785340,0.36218604,93047.0,93022.0,0.3608]
[1736357785648,0.36218604,93047.0,93024.0,0.053773]
[1736357785845,0.36218604,93047.0,93007.0,0.053782]
[1736357785846,0.3608,93045.0,93015.0,0.3608]
[1736357786151,0.29969639,93030.0,93016.0,1.5]
[1736357786343,0.3608,93021.0,93016.0,1.5]
[1736357786646,0.00416047,93020.0,93017.0,0.053777]
[1736357787152,0.00416047,93020.0,93018.0,0.053776]
[1736357787347,0.3608,93038.0,93019.0,0.3608]
[1736357787542,0.3608,93038.0,93036.0,0.053766]
[1736357787744,0.3608,93038.0,93037.0,1.5]
[1736357788145,0.775365,93038.0,93037.0,1.5]
[1736357788347,0.80447964,93038.0,93037.0,1.5]
[1736357788545,0.75071464,93038.0,93010.0,0.3608]
[1736357788752,0.053779,93014.0,93007.0,0.053782]
[1736357788948,0.3608,93010.0,92989.0,0.053793]
[1736357789150,0.053786,93001.0,92982.0,0.3608]
[1736357789652,0.05379,92996.0,92982.0,0.3608]
[1736357789853,0.3608,92992.0,92982.0,0.3608]
[1736357790051,0.053795,92987.0,92982.0,0.3608]
[1736357790253,0.0018504,92991.0,92980.0,0.19119156]
[1736357790447,0.3608,92992.0,92960.0,0.05381]
[1736357790448,0.053805,92969.0,92960.0,0.05381]
[1736357790655,0.414609,92963.0,92951.0,0.053815]
[1736357790847,0.414609,92963.0,92939.0,0.19119156]
[1736357790848,0.00010566,92962.0,92947.0,0.053817]
[1736357791052,8.811e-05,92961.0,92947.0,0.053817]
[1736357791255,0.29981387,92960.0,92947.0,0.053817]
[1736357791446,0.00010887,92959.0,92945.0,0.053819]
[1736357791646,9.428e-05,92958.0,92939.0,0.19119156]
[1736357791954,0.01989719,92958.0,92951.0,0.053815]
[1736357792154,0.09062554,92959.0,92943.0,0.053819]
[1736357792455,0.3608,92954.0,92938.0,0.3608]
[1736357792759,0.3608,92954.0,92930.0,0.3608]
[1736357792760,0.3608,92943.0,92930.0,0.3608]
[1736357792952,0.35401859,92940.0,92912.0,0.3608]
[1736357793153,0.35401859,92940.0,92924.0,0.053831]
[1736357793343,0.35401859,92940.0,92926.0,0.053829]
[1736357793344,0.02499408,92939.0,92926.0,0.053829]
[1736357794062,0.053823,92938.0,92926.0,0.053829]
[1736357794556,0.3608,92952.0,92949.0,0.053816]
[1736357794853,0.3608,92952.0,92934.0,0.3608]
[1736357795060,0.10959677,92951.0,92934.0,0.3608]
[1736357795356,0.10959677,92951.0,92944.0,0.053819]
[1736357795747,0.10959677,92951.0,92945.0,1.5]
[1736357796148,0.3608,92952.0,92945.0,1.5]
[1736357796352,0.11191171,92951.0,92945.0,1.5]
[1736357796552,0.11191171,92951.0,92922.0,0.3608]
[1736357796856,0.11191171,92951.0,92909.0,0.3608]
[1736357796857,0.3608,92935.0,92924.0,0.053831]
[1736357797251,0.3608,92925.0,92903.0,0.3608]
[1736357797449,0.053832,92922.0,92903.0,0.3608]
[1736357797760,0.053829,92929.0,92915.0,0.053836]
[1736357798064,0.3608,92927.0,92915.0,0.053836]
[1736357798256,0.3608,92916.0,92904.0,1.553842]
[1736357798746,0.3608,92916.0,92912.0,0.053838]
[1736357798954,0.02461405,92924.0,92914.0,0.053836]
[1736357799250,0.3608,92925.0,92904.0,1.50056]
[1736357799450,0.053833,92921.0,92904.0,1.5]
[1736357799657,0.053835,92918.0,92904.0,1.5]
[1736357799964,0.3608,92905.0,92900.0,0.1]
[1736357800456,0.00787797,92904.0,92900.0,0.4608]
[1736357800659,0.3608,92917.0,92900.0,0.7608]
[1736357800961,0.053827,92931.0,92908.0,0.3608]
[1736357801148,0.05383,92926.0,92908.0,0.3608]
[1736357801352,0.01206963,92930.0,92909.0,0.05384]
[1736357801553,0.00231648,92925.0,92907.0,0.3608]
[1736357801863,0.00231648,92925.0,92923.0,0.414631]
[1736357802158,0.00231648,92925.0,92915.0,0.414636]
[1736357802364,0.00231648,92925.0,92921.0,0.053832]
[1736357802663,0.00231648,92925.0,92924.0,0.3608]
[1736357803049,0.053807,92965.0,92924.0,0.6608]
[1736357803364,0.3608,92976.0,92968.0,0.053805]
[1736357803555,0.10310568,92966.0,92964.0,1.50056]
[1736357803751,0.00324129,92969.0,92964.0,1.5]
[1736357803954,0.3608,92993.0,92967.0,0.3608]
[1736357804159,0.05379,92995.0,92981.0,0.053797]
[1736357804462,0.06931567,92992.0,92980.0,0.30019659]
[1736357804664,0.06931567,92992.0,92990.0,0.053792]
[1736357804857,0.3608,93033.0,92989.0,0.3608]
[1736357805165,0.05377,93029.0,93017.0,0.053776]
[1736357805371,0.053765,93039.0,93028.0,0.05377]
[1736357805567,0.3608,93059.0,93034.0,0.3608]
[1736357806061,0.66979973,93073.0,93021.0,1.5]
[1736357806062,0.3608,93049.0,93021.0,1.5]
[1736357806254,0.3608,93036.0,93018.0,0.3608]
[1736357806457,0.3608,93019.0,92998.0,0.053788]
[1736357806658,0.3608,93019.0,93007.0,0.053783]
[1736357806953,0.053786,93002.0,92985.0,0.3608]
[1736357807153,0.053787,93001.0,92986.0,7.983e-05]
[1736357807466,0.3608,92991.0,92986.0,7.983e-05]
[1736357807665,0.3608,93019.0,92990.0,0.3608]
[1736357807861,0.053763,93041.0,93014.0,0.3608]
[1736357808161,0.053763,93041.0,93031.0,0.053769]
[1736357808367,0.053758,93051.0,93039.0,0.3608]
[1736357808564,0.053758,93051.0,93041.0,0.053763]
[1736357808866,0.053761,93044.0,93039.0,0.3608]
[1736357809064,0.3608,93052.0,93039.0,0.3608]
[1736357809266,0.053758,93050.0,93039.0,0.3608]
[1736357809461,0.15910362,93068.0,93047.0,0.3608]
[1736357809660,1.7e-07,93089.0,93074.0,0.053744]
[1736357809968,0.00865935,93142.0,93088.0,0.7216]
[1736357810167,0.053703,93138.0,93117.0,0.3608]
[1736357810367,0.053708,93130.0,93110.0,0.053719]
[1736357810672,0.053717,93114.0,93091.0,0.41453]
[1736357810862,0.30019659,93120.0,93099.0,0.3608]
[1736357811058,0.053715,93117.0,93099.0,0.3608]
[1736357811261,0.3608,93127.0,93099.0,0.3608]
[1736357811262,0.053716,93115.0,93099.0,0.3608]
[1736357811469,0.053719,93111.0,93099.0,0.3608]
[1736357811968,0.053711,93124.0,93102.0,0.414524]
[1736357812169,0.3608,93127.0,93102.0,0.3608]
[1736357812365,0.3608,93127.0,93091.0,0.3608]
[1736357812366,0.053723,93103.0,93091.0,0.3608]
[1736357812569,0.053724,93101.0,93091.0,0.3608]
[1736357812755,0.30019659,93110.0,93075.0,0.053739]
[1736357812756,0.053728,93095.0,93075.0,0.053739]
[1736357812959,0.3608,93107.0,93093.0,0.053729]
[1736357813168,0.3608,93107.0,93082.0,0.3608]
[1736357813365,0.3608,93107.0,93083.0,1.5]
[1736357813569,0.3608,93106.0,93104.0,0.053722]
[1736357813770,0.3608,93115.0,93106.0,0.053721]
[1736357814068,0.41451,93126.0,93100.0,0.053724]
[1736357814069,0.3608,93126.0,93100.0,0.053724]
[1736357814267,0.3608,93126.0,93115.0,0.3608]
[1736357814570,0.3608,93134.0,93115.0,0.3608]
[1736357814972,0.3608,93134.0,93133.0,0.053706]
[1736357815362,0.3608,93134.0,93133.0,0.353706]
[1736357815665,0.053687,93165.0,93149.0,0.053696]
[1736357815871,0.3608,93167.0,93143.0,0.3608]
[1736357816168,0.3608,93174.0,93159.0,0.3608]
[1736357816361,0.053676,93184.0,93167.0,0.3608]
[1736357816564,0.3608,93179.0,93159.0,0.3608]
[1736357816768,0.3608,93179.0,93160.0,0.29881183]
[1736357817068,0.053669,93197.0,93176.0,0.3608]
[1736357817367,0.053674,93189.0,93174.0,0.053682]
[1736357817559,0.1,93180.0,93168.0,0.3608]
[1736357817757,0.1,93180.0,93179.0,0.053679]
[1736357818170,0.20128,93200.0,93179.0,0.3]
[1736357818370,0.2,93200.0,93193.0,0.053671]
[1736357818571,0.2,93200.0,93184.0,0.3608]
[1736357818773,0.2,93200.0,93195.0,0.05367]
[1736357819365,0.2,93200.0,93194.0,1.5006]
[1736357819565,0.2,93200.0,93194.0,1.5]
[1736357819762,0.3608,93195.0,93194.0,1.5]
[1736357819973,0.3608,93195.0,93181.0,0.053678]
[1736357820167,0.2,93200.0,93184.0,0.3608]
[1736357820371,0.2,93200.0,93193.0,0.053671]
[1736357820558,0.2,93200.0,93199.0,0.053668]
[1736357821062,0.2,93200.0,93189.0,0.053674]
[1736357821258,0.2,93200.0,93183.0,0.3608]
[1736357821463,0.3608,93194.0,93180.0,0.29881183]
[1736357821662,0.2,93200.0,93193.0,0.053671]
[1736357821862,0.3608,93194.0,93182.0,0.053677]
[1736357822175,0.3608,93186.0,93164.0,0.3608]
[1736357822365,0.3608,93186.0,93170.0,0.29881183]
[1736357822560,0.3608,93186.0,93179.0,0.053679]
[1736357822762,0.3608,93186.0,93169.0,0.053685]
[1736357822763,0.3608,93185.0,93169.0,0.053685]
[1736357822958,0.3608,93171.0,93158.0,0.053691]
[1736357823169,0.3608,93171.0,93140.0,0.29881183]
[1736357823372,0.3608,93177.0,93160.0,0.29881183]
[1736357823559,0.3608,93177.0,93160.0,0.35250183]
[1736357823768,0.053682,93176.0,93160.0,0.05369]
[1736357824068,0.3608,93177.0,93160.0,0.65961183]
[1736357824270,0.3608,93177.0,93175.0,0.053682]
[1736357824658,0.3608,93177.0,93164.0,0.053688]
[1736357825177,0.3608,93169.0,93153.0,0.053694]
[1736357825373,0.41449,93161.0,93145.0,0.053699]
[1736357825670,0.7216,93146.0,93141.0,0.00214728]
[1736357825876,0.7216,93146.0,93143.0,0.0537]
[1736357826070,0.7216,93146.0,93141.0,0.00214728]
[1736357826269,0.7216,93146.0,93144.0,0.053699]
[1736357826573,0.3608,93156.0,93141.0,0.00214728]
[1736357826871,0.3608,93156.0,93154.0,0.053694]
[1736357827076,0.053684,93171.0,93146.0,0.29881183]
[1736357827473,0.3608,93172.0,93148.0,0.3608]
[1736357827665,0.3608,93172.0,93167.0,0.053686]
[1736357828170,0.3608,93172.0,93171.0,0.053684]
[1736357828372,0.3608,93191.0,93171.0,0.3]
[1736357828672,0.3608,93191.0,93190.0,0.053673]
[1736357828875,0.3608,93191.0,93174.0,0.3608]
[1736357829077,0.3608,93191.0,93180.0,0.053679]
[1736357829078,0.3608,93181.0,93180.0,0.053679]
[1736357829282,0.3608,93191.0,93190.0,0.053673]
[1736357829471,0.2,93200.0,93181.0,0.29881183]
[1736357829779,0.2,93200.0,93199.0,0.053668]
[1736357830877,0.5608,93200.0,93199.0,0.053668]
[1736357832983,0.5608,93200.0,93161.0,0.3608]
[1736357833289,0.3608,93180.0,93178.0,0.05368]
[1736357833784,0.3608,93187.0,93182.0,0.053678]
[1736357834079,0.3608,93195.0,93170.0,0.29881183]
[1736357834283,0.3608,93195.0,93162.0,1.5]
[1736357834284,0.3608,93195.0,93193.0,0.053671]
[1736357835081,0.2,93200.0,93199.0,0.053668]
[1736357836276,0.2,93200.0,93199.0,1.553668]
[1736357836583,0.2,93200.0,93185.0,0.29881183]
[1736357836584,0.2,93200.0,93191.0,0.053672]
[1736357836770,0.3608,93193.0,93191.0,0.053672]
[1736357837577,0.3608,93193.0,93186.0,1.5006]
[1736357837778,0.053675,93187.0,93170.0,0.29881183]
[1736357837989,0.3608,93171.0,93170.0,0.35249683]
[1736357838180,0.3608,93189.0,93170.0,0.29881183]
[1736357838381,0.5608,93200.0,93191.0,0.053673]
[1736357838382,0.3608,93192.0,93191.0,0.053673]
[1736357838588,0.5608,93200.0,93193.0,0.053671]
[1736357838892,0.5608,93200.0,93180.0,0.29881183]
[1736357839094,0.5608,93200.0,93198.0,0.053669]
[1736357839386,0.5608,93200.0,93189.0,0.053674]
[1736357839576,0.3608,93192.0,93160.0,0.29881183]
[1736357839774,0.3608,93178.0,93177.0,0.053681]
[1736357840179,0.4255,93199.0,93191.0,0.053673]
[1736357840383,0.4255,93199.0,93198.0,0.053669]
[1736357840579,0.2,93200.0,93198.0,0.053669]
[1736357842283,0.034789,93200.0,93198.0,0.053669]
[1736357842591,0.3608,93228.0,93219.0,0.053659]
[1736357842790,0.3608,93228.0,93219.0,0.414459]
[1736357843291,0.1,93240.0,93227.0,0.053655]
[1736357843482,0.3608,93254.0,93239.0,0.414448]
[1736357843676,0.4608,93260.0,93259.0,0.053637]
[1736357843677,0.1,93260.0,93259.0,0.053637]
[1736357843882,0.1,93260.0,93259.0,0.414437]
[1736357844284,1e-06,93260.0,93259.0,0.414437]
[1736357844483,0.1,93280.0,93279.0,0.053625]
[1736357845090,0.1,93280.0,93279.0,1.553625]
[1736357845507,0.1,93280.0,93279.0,1.5]
[1736357845682,0.153624,93280.0,93279.0,1.5]
[1736357845879,0.1,93280.0,93279.0,1.5]
[1736357847592,0.3608,93301.0,93279.0,2.1608]
[1736357847797,0.3608,93301.0,93298.0,0.053614]
[1736357847990,0.053609,93308.0,93298.0,0.053614]
[1736357848190,0.3608,93310.0,93298.0,0.053614]
[1736357848386,0.3608,93310.0,93298.0,0.414414]
[1736357848581,0.16003901,93314.0,93298.0,0.414414]
[1736357849484,0.1,93320.0,93298.0,0.414414]
[1736357849686,0.3608,93317.0,93298.0,0.053614]
[1736357849887,0.3608,93309.0,93298.0,0.053614]
[1736357850300,0.3608,93317.0,93298.0,0.414414]
[1736357850488,0.1,93320.0,93298.0,0.6608]
[1736357850688,0.1,93320.0,93319.0,0.053602]
[1736357850889,0.1,93320.0,93319.0,1.553602]
[1736357851299,0.1,93320.0,93319.0,1.5]
[1736357851487,0.053604,93316.0,93310.0,0.053607]
[1736357851691,0.4608,93320.0,93311.0,0.053607]
[1736357852001,0.053604,93316.0,93300.0,0.30697163]
[1736357852295,0.4608,93320.0,93300.0,0.30697163]
[1736357852296,0.4608,93320.0,93316.0,0.053604]
[1736357852499,0.1,93320.0,93310.0,0.30697163]
[1736357852893,0.1,93320.0,93300.0,0.30697163]
[1736357853101,0.1,93320.0,93318.0,0.053602]
[1736357853999,0.1,93340.0,93338.0,0.053591]
[1736357854602,0.1,93340.0,93304.0,0.3608]
[1736357854800,0.1,93340.0,93330.0,0.30697163]
[1736357854991,0.1,93340.0,93338.0,0.053591]
[1736357855193,0.3608,93339.0,93313.0,0.3608]
[1736357855503,0.21384632,93339.0,93320.0,0.30697163]
[1736357855697,0.1,93340.0,93302.0,0.0106473]
[1736357855698,0.1,93340.0,93338.0,0.053591]
[1736357856393,0.1,93340.0,93339.0,1.8608]
[1736357856594,0.1,93340.0,93338.0,0.053591]
[1736357856794,0.1,93340.0,93322.0,0.0536]
[1736357856996,0.1,93340.0,93321.0,0.414401]
[1736357856997,0.053597,93328.0,93321.0,0.414401]
[1736357857197,0.3608,93329.0,93311.0,0.3608]
[1736357857399,0.053597,93329.0,93311.0,0.3608]
[1736357857604,0.053596,93330.0,93323.0,0.0536]
[1736357857804,0.3608,93327.0,93311.0,0.3608]
[1736357858004,0.1,93340.0,93332.0,0.053594]
[1736357858303,0.053592,93338.0,93329.0,0.053596]
[1736357858506,0.053592,93338.0,93311.0,0.3608]
[1736357858507,0.3608,93337.0,93327.0,0.053598]
[1736357858704,0.1,93340.0,92779.0,0.25424978]
[1736357858705,0.1,93340.0,93333.0,0.053595]
[1736357859006,0.1,93340.0,93339.0,0.053592]
[1736357859802,0.1,93340.0,93327.0,0.053598]
[1736357859803,0.1,93340.0,93334.0,0.3608]
[1736357859999,0.1,93340.0,93339.0,0.053592]
[1736357860201,0.3608,93358.0,93357.0,0.053582]
[1736357860402,0.1,93360.0,93359.0,0.05358]
[1736357861508,0.1,93380.0,93379.0,0.053569]
[1736357862094,0.4608,93400.0,93399.0,0.053557]
[1736357862401,0.1,93400.0,93399.0,0.053557]
[1736357863509,0.1,93400.0,93399.0,1.553557]
[1736357864404,0.1,93400.0,93399.0,0.053557]
[1736357865803,0.1,93400.0,93399.0,1.553557]
[1736357866306,0.1,93420.0,93399.0,1.553557]
[1736357866510,0.1,93420.0,93419.0,0.053546]
[1736357866900,0.4278,93443.0,93416.0,0.3608]
[1736357867099,0.4278,93443.0,93439.0,0.053534]
[1736357867301,0.4294,93452.0,93439.0,1.553534]
[1736357867503,0.3608,93471.0,93439.0,1.553534]
[1736357867904,0.05352,93465.0,93439.0,1.553534]
[1736357868105,0.3608,93463.0,93439.0,1.553534]
[1736357868302,0.4175,93470.0,93439.0,1.553534]
[1736357868303,0.3608,93447.0,93439.0,1.5]
[1736357868609,0.4608,93440.0,93424.0,0.053543]
[1736357868803,0.4175,93439.0,93415.0,0.3608]
[1736357869005,0.053537,93435.0,93425.0,0.053542]
[1736357869310,0.3608,93430.0,93403.0,0.3608]
[1736357869606,0.3608,93430.0,93410.0,0.30697163]
[1736357869607,0.3608,93419.0,93410.0,0.30697163]
[1736357869810,0.053547,93418.0,93408.0,0.053552]
[1736357870013,0.3608,93419.0,93409.0,0.053551]
[1736357870308,0.3608,93419.0,93417.0,0.053547]
[1736357870813,0.3608,93419.0,93413.0,0.053549]
[1736357871196,0.3608,93419.0,93409.0,0.30697163]
[1736357871398,0.3608,93410.0,93400.0,0.0005]
[1736357871601,0.3608,93401.0,93380.0,0.30697163]
[1736357871813,0.3608,93382.0,93381.0,0.053568]
[1736357872311,0.3608,93390.0,93389.0,0.053563]
[1736357872811,0.4133,93400.0,93384.0,0.3608]
[1736357872999,0.3608,93401.0,93390.0,0.30697163]
[1736357873198,0.3608,93410.0,93407.0,0.053553]
[1736357873404,0.3608,93410.0,93408.0,0.053552]
[1736357873619,0.3608,93424.0,93423.0,0.053544]
[1736357874608,0.77498001,93437.0,93423.0,0.053544]
[1736357874813,0.1,93440.0,93420.0,0.3608]
[1736357875005,0.1,93440.0,93438.0,0.053535]
[1736357875606,0.1,93440.0,93438.0,0.414335]
[1736357876010,0.3608,93464.0,93458.0,0.053524]
[1736357876414,0.053516,93472.0,93458.0,0.053524]
[1736357876818,0.3608,93475.0,93458.0,0.053524]
[1736357876819,0.053517,93471.0,93458.0,0.053524]
[1736357877008,0.4016,93474.0,93458.0,0.053524]
[1736357877702,0.3608,93466.0,93458.0,0.053524]
[1736357877913,0.455115,93474.0,93458.0,0.053524]
[1736357878319,0.4016,93474.0,93458.0,0.053524]
[1736357879328,0.3608,93517.0,93459.0,0.3608]
[1736357879627,0.4009,93524.0,93499.0,0.4143]
[1736357880124,0.4009,93524.0,93519.0,0.053489]
[1736357880425,0.00092,93539.0,93538.0,0.053478]
[1736357880722,0.3608,93549.0,93538.0,0.053478]
[1736357880926,0.4277,93569.0,93538.0,0.053478]
[1736357881627,0.3608,93553.0,93530.0,0.053482]
[1736357881927,0.053472,93549.0,93528.0,0.3608]
[1736357882127,0.3608,93545.0,93528.0,0.3608]
[1736357882324,0.053474,93545.0,93528.0,0.3608]
[1736357882518,0.4117,93548.0,93530.0,0.30697163]
[1736357882821,0.3608,93547.0,93519.0,0.3608]
[1736357883122,0.3608,93538.0,93519.0,0.3608]
[1736357883325,0.414278,93538.0,93519.0,0.3608]
[1736357883528,0.3608,93538.0,93531.0,0.053482]
[1736357883720,0.3608,93538.0,93529.0,0.3608]
[1736357883924,0.4117,93548.0,93539.0,0.053477]
[1736357884123,0.1,93560.0,93539.0,1.5]
[1736357884725,0.3608,93556.0,93537.0,0.3608]
[1736357885321,0.053469,93554.0,93529.0,0.414283]
[1736357885924,0.053469,93554.0,93529.0,0.3608]
[1736357886120,0.4097,93555.0,93535.0,0.053479]
[1736357886323,0.4097,93555.0,93538.0,0.053478]
[1736357886727,0.1,93560.0,93538.0,0.053478]
[1736357887329,0.1,93560.0,93537.0,0.3608]
[1736357887632,0.3608,93618.0,93579.0,0.053454]
[1736357887828,0.3608,93618.0,93599.0,0.053443]
[1736357888029,0.3608,93618.0,93599.0,0.414243]
[1736357888335,0.1,93620.0,93612.0,0.053436]
[1736357888533,0.09433212,93615.0,93612.0,0.3608]
[1736357888837,0.09433212,93615.0,93603.0,0.30697163]
[1736357888838,1.2e-07,93620.0,93619.0,0.053432]
[1736357889021,0.15999913,93629.0,93614.0,0.7216]
[1736357889223,0.05292213,93629.0,93628.0,0.414226]
[1736357889422,1.3e-07,93629.0,93628.0,0.414226]
[1736357889631,0.4237,93669.0,93639.0,0.05342]
[1736357889829,0.4237,93669.0,93614.0,0.37162744]
[1736357889830,0.4237,93669.0,93653.0,0.414212]
[1736357890135,0.3608,93656.0,93635.0,0.3608]
[1736357890426,0.1,93660.0,93635.0,0.3608]
[1736357890644,0.1,93660.0,93627.0,0.3608]
[1736357890645,0.3608,93641.0,93627.0,0.3608]
[1736357891053,0.053424,93632.0,93627.0,0.3608]
[1736357891441,0.05342,93640.0,93627.0,0.3608]
[1736357891740,0.053423,93634.0,93627.0,0.3608]
[1736357891955,0.3608,93656.0,93627.0,0.3608]
[1736357892143,0.1,93660.0,93649.0,0.3608]
[1736357892453,0.053412,93654.0,93638.0,0.05342]
[1736357892650,0.053412,93654.0,93630.0,0.3608]
[1736357892651,0.053413,93653.0,93641.0,0.053419]
[1736357892845,0.053413,93652.0,93639.0,0.3608]
[1736357893041,0.053413,93652.0,93642.0,0.053418]
[1736357893242,0.3608,93654.0,93639.0,0.3608]
[1736357893440,0.3608,93654.0,93605.0,0.06430203]
[1736357893441,0.053423,93634.0,93621.0,0.05343]
[1736357893748,0.3608,93636.0,93618.0,0.3608]
[1736357893950,0.3608,93630.0,93601.0,0.3608]
[1736357894247,0.3608,93630.0,93589.0,0.3608]
[1736357894248,0.3608,93630.0,93598.0,0.3608]
[1736357894652,0.3946,93629.0,93598.0,0.3608]
[1736357894851,0.053433,93616.0,93605.0,0.053439]
[1736357895154,0.3946,93629.0,93598.0,0.3608]
[1736357895355,0.053428,93626.0,93599.0,0.053443]
[1736357895560,0.053437,93611.0,93601.0,0.053441]
[1736357895854,0.3608,93618.0,93598.0,0.3608]
[1736357896257,0.3608,93602.0,93583.0,0.053452]
[1736357896554,0.36040263,93620.0,93580.0,0.3608]
[1736357896555,0.3946,93617.0,93589.0,0.3608]
[1736357896751,0.053438,93608.0,93601.0,0.3608]
[1736357896939,0.448033,93617.0,93602.0,0.0021367]
[1736357897440,0.3608,93611.0,93602.0,0.0127244]
[1736357897651,0.05344,93604.0,93602.0,0.0127244]
[1736357898253,0.05344,93604.0,93581.0,0.3608]
[1736357898454,0.05344,93604.0,93509.0,0.053494]
[1736357898455,0.3608,93598.0,93572.0,0.01047782]
[1736357898647,0.053457,93574.0,93572.0,0.37127782]
[1736357898847,0.053457,93574.0,93573.0,0.00213736]
[1736357899053,0.7754,93609.0,93573.0,0.00213736]
[1736357899252,0.7754,93609.0,93582.0,0.3608]
[1736357899442,0.3608,93604.0,93582.0,0.3608]
[1736357899640,0.053457,93575.0,93573.0,0.00213736]
[1736357899842,0.053457,93574.0,93573.0,0.00213736]
[1736357900457,0.3608,93588.0,93573.0,0.3608]
[1736357900758,0.3608,93624.0,93587.0,0.3608]
[1736357900959,0.053439,93607.0,93600.0,0.3608]
[1736357901161,0.053434,93615.0,93606.0,0.053439]
[1736357901353,0.3608,93624.0,93600.0,0.3608]
[1736357901661,0.3608,93624.0,93603.0,0.053441]
[1736357901852,0.3608,93607.0,93598.0,0.053443]
[1736357902056,0.3608,93616.0,93590.0,0.30697163]
[1736357902355,0.3608,93591.0,93570.0,0.30697163]
[1736357902555,0.3608,93591.0,93580.0,0.30697163]
[1736357902753,0.3608,93596.0,93570.0,0.30697163]
[1736357902950,0.05345,93588.0,93579.0,0.053454]
[1736357903359,0.4127,93595.0,93579.0,0.053454]
[1736357903549,0.4127,93595.0,93580.0,0.30697163]
[1736357903748,0.053438,93608.0,93594.0,0.053446]
[1736357903946,0.053439,93607.0,93602.0,0.053441]
[1736357904152,0.053439,93607.0,93598.0,0.30697163]
[1736357904458,0.053439,93607.0,93598.0,0.053443]
[1736357904649,0.053439,93607.0,93585.0,0.3608]
[1736357904650,0.3608,93599.0,93579.0,0.053454]
[1736357904852,0.3608,93580.0,93567.0,0.19204681]
[1736357905157,0.3608,93572.0,93567.0,0.19204681]
[1736357905364,0.414261,93568.0,93567.0,0.19204681]
[1736357905662,0.18961359,93568.0,93566.0,0.19204681]
[1736357905860,0.4036,93579.0,93566.0,0.19204681]
[1736357906262,0.053461,93568.0,93566.0,0.19204681]
[1736357906767,0.4036,93579.0,93560.0,1.5]
[1736357906768,0.053463,93565.0,93560.0,1.5]
[1736357906959,0.053463,93565.0,93557.0,0.3608]
[1736357906960,0.053466,93558.0,93557.0,0.3608]
[1736357907161,0.4107,93564.0,93541.0,0.3608]
[1736357907352,0.4107,93564.0,93549.0,0.3608]
[1736357907862,0.7715,93564.0,93549.0,0.3608]